Cogmind - Beta 16.1 @@@ ROGUE MODE // 2026.02.16 @ 19:22:39 Player: Megaknight51 Result: Destroyed by OU-RLV(R) with Subdweller Shrapnel Launcher Performance ------------- Evolutions (0) 0 Regions Visited (1) 200 Robots Destroyed (31) 155 Value Destroyed (581) 581 Prototype IDs (1) 20 Alien Tech Used (0) 0 Bonus (0) 0 TOTAL SCORE: 956 Bonus ------- None Cogmind --------- Core Integrity 0/250 Matter 87/300 Energy 98/100 System Corruption 1% Temperature Cool (0) Movement Rolling (110) Ox2 Location -10/Materials Parts ------- > --- POWER (1) -------- (None) > --- PROPULSION (2) --- Wheel Wheel > --- UTILITY (2) ------ High-capacity Storage Unit Seismic Detector > --- WEAPON (2) ------- Improved Assault Rifle Improved Assault Rifle > --- INVENTORY (20) --- Ion Engine Light Nuclear Core Light Treads Wheel Compact Wheel Compact Wheel Large Storage Unit Improved Terrain Scanner Light Armor Plating Light Armor Plating EM Pulse Gun Beam Rifle Beam Rifle Improved Assault Rifle Improved Assault Rifle Maul Peak State ------------ > --- POWER ------------ Light Ion Engine > --- PROPULSION ------- Wheel Wheel > --- UTILITY ---------- High-capacity Storage Unit Seismic Detector > --- WEAPON ----------- Improved Assault Rifle Improved Assault Rifle > --- INVENTORY -------- Ion Engine Light Nuclear Core Light Treads Wheel Compact Wheel Compact Wheel Large Storage Unit Improved Terrain Scanner Light Armor Plating Light Armor Plating EM Pulse Gun Beam Rifle Beam Rifle Improved Assault Rifle Improved Assault Rifle Maul [Rating: 13] Favorites ----------- Power Light Ion Engine Engine Light Ion Engine Propulsion Wheel Wheel Wheel Utility Seismic Detector Device Seismic Detector Storage Small Storage Unit Weapon Improved Assault Rifle Energy Gun Medium Laser Ballistic Gun Improved Assault Rifle Launcher Grenade Launcher Build | -11 -10 ------- Run | Yrd Mat Slots Evolved . | . . Power . | . . Propulsion . | . . Utility . | . . Weapon . | . . Parts Attached 14 | 7 7 Power 1 | 1 . Engine 1 | 1 . Core . | . . Reactor . | . . Propulsion 3 | 2 1 Treads . | . . Leg . | . . Wheel 3 | 2 1 Hover . | . . Flight . | . . Utility 3 | 2 1 Device 1 | 1 . Storage 2 | 1 1 Processor . | . . Hackware . | . . Protection . | . . Artifact . | . . Weapon 7 | 2 5 Energy Gun 2 | 1 1 Energy Cannon . | . . Ballistic Gun 4 | 1 3 Ballistic Cannon . | . . Launcher 1 | . 1 Special Weapon . | . . Impact Weapon . | . . Slashing Weapon . | . . Piercing Weapon . | . . Special Melee Weapon . | . . Unidentified Prototypes 1 | . 1 Parts Lost 3 | . 3 Power 1 | . 1 Propulsion 1 | . 1 Utility . | . . Weapon 1 | . 1 Highest Loss Streak 2 | . 2 To Critical Strikes . | . . Average Backups 8 | 4 12 Power 1 | . 1 Propulsion 2 | 1 3 Utility 1 | . 2 Weapon 2 | . 5 Tool/Special . | . . Unused Backups 15 | . 15 Power 2 | . 2 Propulsion 4 | . 4 Utility 4 | . 4 Weapon 5 | . 5 Tool/Special . | . . Average Slot Usage (%) 99 | . 99 Engine 14 | . 14 Wheel 27 | . 27 Device 14 | . 14 Storage 14 | . 14 Ballistic Gun 17 | . 17 Launcher 9 | . 9 Peak Build Rating 13 | 7 13 Average Rating 8 | 6 11 On Entrance 3 | . 7 Avg Prop Armor Cover (%) . | . . Naked Turns . | . . Heaviest Build 50 | 12 50 Greatest Support 20 | 20 20 Greatest Overweight (x) 4 | 1 4 Average Overweight (x) 1 | . 1 Largest Inventory Capacity 20 | 8 20 Average Capacity 12 | 7 17 Most Carried 17 | 5 17 Average Carried 8 | 4 12 Final Capacity 20 | 8 20 Final Carried 16 | 5 16 Class Distribution -------------------- 100% | Mutant Dominant Class ---------------- Mutant | -10/Materials Resources | -11 -10 ----------- Run | Yrd Mat Matter Collected 439 | 308 131 Remotely . | . . Salvage Created 684 | 263 421 Parts 53 | 18 35 Haulers Intercepted 1 | . 1 Recyclers Shooed . | . . Parts Field Recycled . | . . Retrieved Matter . | . . Parts Self-Destructed . | . . Prevented . | . . Parts Restored . | . . Kills | -11 -10 ------- Run | Yrd Mat Combat Hostiles Destroyed 17 | . 17 Guns 7 | . 7 AOE 10 | . 10 Classes Destroyed 8 | 3 5 Worker 2 | 2 . Builder 1 | . 1 Tunneler 9 | 9 . Hauler 1 | . 1 Recycler 1 | 1 . Swarmer 6 | . 6 Grunt 10 | . 10 Subdweller 1 | . 1 Best Kill Streak 5 | 5 3 Combat Bots Only 3 | . 3 Max Kills in Single Turn 2 | 1 2 Gunslinging . | . . Exploded 2 | . 2 Melee . | . . Uniques/NPCs Destroyed . | . . Combat | -11 -10 -------- Run | Yrd Mat Hostile Shots Fired 39 | . 39 Missed 12 | . 12 Hits 27 | . 27 Projectile 27 | . 27 AOE 3 | . 3 Critical Strikes 1 | . 1 Damage Taken 624 | . 624 Core 302 | . 302 Absorbed by Shields . | . . Core Remaining (%) 100 | 100 . Volleys Fired 68 | 38 30 Largest 2 | 2 2 Hottest 79 | 70 79 Shots Fired 136 | 76 60 Gun 121 | 76 45 Cannon . | . . Launcher 15 | . 15 Special . | . . Kinetic 81 | 38 43 Thermal 40 | 38 2 Explosive 15 | . 15 Electromagnetic . | . . Robot Hit Streak 13 | 5 13 Robot Miss Streak 3 | 3 2 Penetration Max . | . . Secondary Targets 3 | . 3 Max Gunslinging Chain 1 | . 1 Shots Hit Robots 78 | 43 35 Core Hits 47 | 16 31 Critical Kills . | . . Critical Parts Destroyed . | . . Critical Strikes 6 | 6 . Burn 6 | 6 . Melee Attacks . | . . Impact . | . . Slashing . | . . Piercing . | . . Sneak Attacks . | . . Combat Hostiles . | . . Follow-up Attacks . | . . Damage Inflicted 1714 | 487 1227 Guns 961 | 487 474 Cannons . | . . Explosions 753 | . 753 Melee . | . . Ramming . | . . Kinetic 608 | 149 459 Thermal 353 | 338 15 Explosive 753 | . 753 Electromagnetic . | . . Impact . | . . Slashing . | . . Piercing . | . . Highest Corruption 1 | . 1 Average Corruption 1 | . 1 Corruption Purged . | . . Corruption Blocked . | . . Effects 4 | . 4 Message Errors 2 | . 2 Heat Flow Errors 2 | . 2 Overload Shots . | . . Overflow Damage 3 | . 3 Projectiles . | . . Explosions 3 | . 3 Melee . | . . Knockbacks . | . . Impact . | . . Kinetic . | . . Secondary . | . . Self-Inflicted Damage 45 | . 45 Shots 2 | . 2 Rammed . | . . Targets Rammed . | . . Kicked . | . . Crushed . | . . Highest Temperature 270 | 270 183 Average Temperature 84 | 96 45 Received Heat Transfer 105 | . 105 Siege Activations . | . . Martial Activations . | . . Shielding Activations . | . . Robots Disrupted . | . . Combat Hostiles . | . . Robots Corrupted . | . . Combat Hostiles . | . . Parts Fried . | . . Impact Corruptions . | . . Robots Melted . | . . Combat Hostiles . | . . Parts Melted 7 | 5 2 Heat Transferred 1480 | 1443 37 Parts Sabotaged . | . . Parts Stolen . | . . Parts Stripped . | . . Power Chain Reactions . | . . Alert | -11 -10 ------- Run | Yrd Mat Maximum Alert Level 1 | . 1 Low Security (%) 86 | 100 69 Level 1 13 | . 30 Level 2 . | . . Level 3 . | . . Level 4 . | . . Level 5 . | . . High Security . | . . Max Security . | . . Peak Influence 330 | 10 330 Initial . | . . Average 54 | . 119 Influence Increases 714 | 60 654 Destroy 0b10 Robot/C 320 | . 320 Destroy 0b10 Robot/NC 70 | 60 10 Destroy Leader 62 | . 62 Successful Hack 33 | . 33 Select Force Hacks 60 | . 60 Disable Machine 75 | . 75 Destroy Structure 94 | . 94 Influence Decreases 432 | 60 372 Time Decay 402 | 60 342 Lost Part 30 | . 30 Squads Dispatched 4 | . 4 Investigation 3 | . 3 Extermination . | . . Reinforcement 1 | . 1 Assault . | . . Garrison . | . . Intercept . | . . Searches Triggered . | . . Construction Impeded . | . . Haulers Reinforced . | . . Active Scanning Responses . | . . Cargo Convoy Interrupts . | . . Stealth | -11 -10 --------- Run | Yrd Mat Distress Signals 1 | . 1 Communications Jammed . | . . Distress Signals . | . . Times Spotted 25 | . 25 Peak Tracking Total 5 | . 5 Tactical Retreats . | . . Traps | -11 -10 ------- Run | Yrd Mat Traps Triggered 3 | . 3 Indirectly . | . . Trap Hack Attempts . | . . Triggered . | . . Disarmed . | . . Reprogrammed . | . . Reused . | . . Traps Extracted . | . . Installed . | . . Triggered . | . . Machines | -11 -10 ---------- Run | Yrd Mat Machines Disabled 5 | . 5 Max in Single Turn 2 | . 2 Machines Repaired . | . . Machines Dismantled . | . . Machines Sabotaged . | . . Overloaded Fab Kills . | . . Hacking | -11 -10 --------- Run | Yrd Mat Machines Accessed 7 | . 7 Terminals 5 | . 5 Fabricators . | . . Repair Stations . | . . Recycling Units 2 | . 2 Scanalyzers . | . . Garrison Access . | . . Total Hacks 17 | . 17 Successful 10 | . 10 Failed 7 | . 7 Catastrophic 1 | . 1 Database Lockouts . | . . Manual 16 | . 16 Terminals 15 | . 15 Fabricators . | . . Repair Stations . | . . Recycling Units 2 | . 2 Scanalyzers . | . . Garrison Access . | . . Terminal Hacks 5 | . 5 Robot Analysis 2 | . 2 Terminal Index 1 | . 1 Recycling Unit Index 1 | . 1 Registered Components 1 | . 1 Fabricator Hacks . | . . Repair Station Hacks . | . . Recycling Unit Hacks . | . . Scanalyzer . | . . Garrison Access Hacks . | . . Unauthorized Hacks 5 | . 5 Terminals 3 | . 3 Botnet 3 | . 3 Fabricators . | . . Repair Stations . | . . Recycling Units 2 | . 2 Tunnel 2 | . 2 Scanalyzers . | . . Garrison Access . | . . Data Cores Recovered . | . . Used . | . . Hacking Detections 5 | . 5 Full Trace Events 1 | . 1 Feedback Events . | . . Feedback Blocked . | . . Robot Schematics Acquired . | . . Robots Built . | . . Authchips . | . . Time . | . . Total Robot Build Rating . | . . Part Schematics Acquired . | . . Parts Built . | . . Authchips . | . . Time . | . . Total Part Build Rating . | . . Part Studies Acquired . | . . Parts Repaired . | . . Time . | . . Parts Recycled . | . . Recycled Matter . | . . Retrieved Matter . | . . Retrieved Components . | . . Parts Scanalyzed . | . . Part Schematics Acquired . | . . Parts Damaged . | . . Bothacking | -11 -10 ------------ Run | Yrd Mat Used RIF Installer . | . . Robots Hacked . | . . Non-combat . | . . Combat . | . . Robot Hacks Applied . | . . Relay Couplers Released . | . . Fabnet Peak Effective % . | . . Robots Rewired . | . . Allies Hacked . | . . Hacks Repelled . | . . Allies | -11 -10 -------- Run | Yrd Mat Total Allies . | . . Largest Group . | . . Highest-Rated Group . | . . Highest-Rated Ally . | . . Total Orders . | . . Ally Attacks . | . . Total Damage . | . . Kills . | . . Allies Corrupted . | . . Allies Melted . | . . Intel | -11 -10 ------- Run | Yrd Mat Active Infowar (turns) 1732 | 900 832 Seismic 1732 | 900 832 Robot Analysis Total 2 | . 2 Derelict Logs Recovered . | . . Drone Launches . | . . Drone Recoveries . | . . Exploration | -11 -10 ------------- Run | Yrd Mat Turns Passed 1845 | 1013 832 Spaces Moved 871 | 195 676 Core 24 | 24 . Treads . | . . Legs . | . . Wheels 847 | 171 676 Hover . | . . Flight . | . . Fastest Speed 50 | 50 80 Average Speed 96 | 78 102 Slowest Speed 140 | 100 140 Overloaded Moves . | . . Propulsion Burnouts . | . . Robots Hopped . | . . Potential Cave-ins . | . . Cave-ins Triggered . | . . Exploration Rate (%) 50 | 5 95 Regions Visited 1 Branch Regions . Pre-discovered Areas 2 | . 2 Known Exits Taken . | . . Unknown Exits Taken 1 | 1 . Scrap Searched . | . . Spaces Dug . | . . Terrain Destroyed 91 | . 91 Melee . | . . Projectile . | . . AOE 91 | . 91 Terrain Rammed . | . . Walls Destroyed . | . . Machines Disabled . | . . Actions | -11 -10 --------- Run | Yrd Mat Total 1739 | 983 756 Wait 765 | 739 26 Move 870 | 194 676 Hop . | . . Pick Up 18 | 5 13 Fast Attach 8 | 7 1 Attach 1 | . 1 Detach . | . . Swap 6 | . 6 Drop 3 | . 3 Fire 68 | 38 30 Melee . | . . Ram . | . . Kick . | . . Crush . | . . Escape Stasis . | . . Rewire . | . . Trap . | . . Miscellaneous . | . . Route ------- -11/Scrapyard -10/Materials (discovered 5 exits: [*Mat x3] / [*Min] / [*Sub]) History --------- Turn | Location | Event 16 | -11/Scrapyard | Discovered new exit (range 16) 1014 | -11/Scrapyard | Entered Materials 1015 | -10/Materials | Build established: Mutant 1339 | -10/Materials | Discovered new exit (range 16) 1530 | -10/Materials | Discovered new exit (range 16) 1541 | -10/Materials | Core integrity fell below 50% 1602 | -10/Materials | Discovered new exit (range 16) 1791 | -10/Materials | Discovered new exit (range 15) 1797 | -10/Materials | Discovered new exit (range 15) 1814 | -10/Materials | Derelicts attacked the area 1845 | -10/Materials | Core integrity fell below 20% 1846 | -10/Materials | Destroyed by OU-RLV(R) with Subdweller Shrapnel Launcher Last Messages --------------- 01773_ The unstable cave ceiling collapses. 01775_ R-06 Scavenger collects Wheel. 01775_ Acquired 8 matter. 01776_ R-06 Scavenger collects Lgt. Ion Engine. 01778_ R-06 Scavenger collects Aluminum Leg. 01778_ Acquired Wheel. 01786_ Connecting with Terminal... 01791_ EXIT=FOUND 01814_ ALERT: Derelict incursion detected, rerouting patrols to target area. 01832_ Grenade Launcher destroyed. 01837_ Sub. Optics melted. 01837_ Sub. Laser melted. 01837_ 4Z-4I7(R) destroyed. 01837_ Switching to secondary target: OU-RLV(R). 01842_ The unstable cave ceiling collapses. 01842_ OU-RLV(R) affixes Scrap Shield Fragment to Scrap Shield. 01844_ Lgt. Ion Engine destroyed. 01844_ Terminal disabled. 01846_ The unstable cave ceiling collapses. Map ----- +----------------------------------------------------+ | #?? """"" + ## #???????????# # ## | | #? """"" ## #???????????# # ## | | ### """"" ## #???????????# #""" ## | | + """ ### #???????????# #"R ## | | ### # ##########???????????# #?"" ### | | ??########### #??????